[Event "Israeli Championship 2022"]
[Site "Yosiah Arad"]
[Date "2022.12.13"]
[Round "9.12"]
[White "Aizenberg, Benny"]
[Black "Shohat, Yotam"]
[Result "1/2-1/2"]
[ECO "B96"]
[WhiteElo "2375"]
[BlackElo "2294"]
[Annotator "TA"]
[PlyCount "49"]
[EventDate "2022.12.05"]
[EventType "swiss"]
[EventCountry "ISR"]
[SourceTitle "playchess.com"]
[Source "ChessBase"]
[SourceQuality "1"]
[TimeControl "40/5400+30:1800+30"]

{[%evp 19,49,42,61,43,29,35,32,39,52,34,27,14,10,0,0,0,0,0,0,0,0,0,0,0,0,0,0,0,0,0,0,0]} 1. e4 {[%emt 0:00:02]} c5 {[%emt 0:00:06]} 2. Nf3 {[%emt 0:00:04]} d6 {[%emt 0:00:03]} 3. d4 {[%emt 0:00:03]} cxd4 {[%emt 0:00:03]} 4. Nxd4 {[%emt 0:00:04]} Nf6 {[%emt 0:00:05]} 5. Nc3 {[%emt 0:00:03]} a6 {[%emt 0:00:07]} 6. Bg5 {[%emt 0:00:05]} e6 {[%emt 0:00:05]} 7. f4 {[%emt 0:00:04][%cal Bf2f4,Bf4f5][%mdl 32]} Qc7 {[%emt 0:00:03]} 8. Bxf6 {[%emt 0:00:21]} gxf6 {[%emt 0:00:07]} 9. Qf3 $1 {[%emt 0:00:53][%mdl 4] is now more promising than 9.Qd2.} Nc6 {[%emt 0:11:30]} 10. O-O-O {[%emt 0:00:18]} Bd7 {[%emt 0:00:53]} 11. f5 {[%emt 0:02:21] [#] Black must now prevent fxe6. White is more active. B96: Sicilian Najdorf: 6 Bg5 e6 7 f4, lines other than 7...Qb6 and 7...Be7.} Nxd4 {[%emt 0:18:32]} 12. Rxd4 {[%emt 0:00:06]} Qc5 {[%emt 0:00:08][%csl LRd4,LRf5]} 13. Rd3 {[%emt 0:09:11] White is slightly better.} Qe5 {[%emt 0:17:31] [#]} 14. g3 $146 {[%emt 0:05:40]} ({Predecessor:} 14. Kb1 O-O-O 15. Qh5 Rg8 16. Qxh7 Rg7 17. Qh4 Bc6 18. Rd2 exf5 19. exf5 Qxf5 20. Bd3 {½-½ (40) Janosi,E (2316)-Ljubicic,L (2448) ICCF email 2008}) 14... h5 {[%emt 0:02:33]} 15. Bg2 {[%emt 0:03:56]} h4 {[%emt 0:02:00] The position is equal.} 16. Rhd1 {[%emt 0:02:25]} hxg3 {[%emt 0:00:55]} 17. hxg3 {[%emt 0:00:05]} O-O-O {[%emt 0:02:19][%cal Be8c8,Bc8b8,Bb8a7][%mdl 32]} 18. Ne2 {[%emt 0:02:37]} Kb8 {[%emt 0:01:54]} ({Much less strong is} 18... exf5 19. exf5 d5 20. Qxd5 (20. Rxd5 Bh6+ 21. Kb1 Bc6 $16) 20... Qxd5 21. Bxd5 $16) 19. Nd4 {[%emt 0:01:59]} Be7 {[%emt 0:09:22]} 20. Rb3 {[%emt 0:01:51]} Rc8 {[%emt 0:03:16]} 21. Bf1 {[%emt 0:08:00]} Ka7 {[%emt 0:04:51]} 22. Qe3 {[%emt 0:05:25] [#] Threatening mate with Nc6+.} Qc5 {[%emt 0:01:33] Inhibits Nc6+.} 23. Rc3 {[%emt 0:08:20]} Qb6 {[%emt 0:00:17]} 24. Rb3 {[%emt 0:01:12]} Qc5 {[%emt 0:00:04]} 25. Rc3 {[%emt 0:00:07] Black took control after the opening.   Weighted Error Value: White=0.04 (flawless) /Black=0.01 (flawless)} 1/2-1/2

[Event "Israeli Championship 2022"]
[Site "Yosiah Arad"]
[Date "2022.12.13"]
[Round "9.13"]
[White "Tzidkiya, Yeshaayahu"]
[Black "Kupervaser, Erez"]
[Result "1/2-1/2"]
[WhiteElo "2444"]
[BlackElo "2331"]
[Annotator "TA"]
[PlyCount "35"]
[EventDate "2022.12.05"]
[EventType "swiss"]
[EventCountry "ISR"]
[SourceTitle "playchess.com"]
[Source "ChessBase"]
[SourceQuality "1"]
[TimeControl "40/5400+30:1800+30"]

{[%evp 15,16,53,37]} 1. e4 {[%emt 0:00:03]} c5 {[%emt 0:00:04]} 2. Nf3 {[%emt 0:00:05]} d6 {[%emt 0:00:19]} 3. d4 {[%emt 0:00:08]} cxd4 {[%emt 0:00:03]} 4. Nxd4 {[%emt 0:00:04]} Nf6 {[%emt 0:00:06]} 5. Nc3 {[%emt 0:00:03]} g6 {[%emt 0:00:05]} 6. Be3 {[%emt 0:00:08]} Bg7 {[%emt 0:00:03]} 7. f3 {[%emt 0:00:04]} O-O {[%emt 0:00:06]} 8. Qd2 {[%emt 0:00:24]} Nc6 {[%emt 0:00:06] [#]} {Predecessor:} 9. g4 $146 {B76: Sicilian Dragon: Yugoslav Attack, 9 g4 and 9 0-0-0.} Be6 10. h4 d5 11. e5 Nd7 12. Nxe6 fxe6 13. f4 Ndxe5 14. fxe5 d4 15. O-O-O dxe3 16. Qxe3 Qa5 17. Bc4 Qxe5 18. Bxe6+ {1-0 (64) Dubov,D (2708)-Mamedov,R (2646) Chess.com INT 2022} 1/2-1/2

[Event "Israeli Championship 2022"]
[Site "Yosiah Arad"]
[Date "2022.12.13"]
[Round "9.14"]
[White "Uritsky, Yonathan"]
[Black "Barak, Gil"]
[Result "0-1"]
[ECO "A07"]
[WhiteElo "2216"]
[BlackElo "2147"]
[Annotator "TA"]
[PlyCount "70"]
[EventDate "2022.12.05"]
[EventType "swiss"]
[EventCountry "ISR"]
[SourceTitle "playchess.com"]
[Source "ChessBase"]
[SourceQuality "1"]
[TimeControl "40/5400+30:1800+30"]

{[%evp 13,70,-35,-18,-31,-31,-31,-27,-36,-31,-25,-21,-49,-33,-64,-57,-44,28,25,25,36,106,104,125,67,199,28,19,16,26,0,13,17,68,66,66,66,76,43,38,0,0,0,0,0,0,-101,-26,-26,-32,-42,-13,-106,-13,-75,-88,-770,-746,-650,-654]} 1. Nc3 {[%emt 0:00:01]} Nf6 {[%emt 0:02:42]} 2. Nf3 {[%emt 0:00:25]} d5 {[%emt 0:01:09]} 3. d3 {[%emt 0:00:06]} e6 {[%emt 0:04:32]} 4. g3 {[%emt 0:00:56]} c5 {[%emt 0:01:09]} 5. Bg2 {[%emt 0:00:51]} Nc6 {[%emt 0:00:29]} 6. O-O {[%emt 0:01:12]} Be7 {[%emt 0:00:25]} 7. e4 {[%emt 0:00:56]} O-O {[%emt 0:02:28] 7...d4 is not played anymore.} (7... d4 $5 {[%cal Rd4c3]} 8. e5 dxc3 9. exf6 cxb2 10. Bxb2 Bxf6 11. Bxf6 Qxf6 $11) 8. Nd2 {[%emt 0:03:00] A07: Réti Opening: New York and Capablanca Systems.} Rb8 {[%emt 0:07:46]} 9. a4 {[%emt 0:00:51]} a6 {[%emt 0:01:48]} 10. f4 {[%emt 0:03:36] Black has an edge.} b5 {[%emt 0:03:09]} 11. axb5 {[%emt 0:00:21]} axb5 {[%emt 0:00:05] [#]} 12. h3 $146 {[%emt 0:01:51]} ({Predecessor:} 12. Ne2 dxe4 13. Nxe4 Bb7 14. Kh1 Ra8 15. Rxa8 Qxa8 16. N2c3 Nd4 17. Nxf6+ Bxf6 18. Ne4 {0-1 (26) Beuchler,H (2110)-Heimrath,R (2205) Bayern 1998}) 12... c4 {[%emt 0:06:11]} 13. Kh2 {[%emt 0:02:58]} b4 {[%emt 0:06:46] Against e5} 14. Ne2 {[%emt 0:01:29]} Na5 {[%emt 0:05:37]} ({Better is} 14... cxd3 $15 15. cxd3 Bb7) 15. e5 $11 {[%emt 0:06:21]} Nd7 {[%emt 0:09:18]} 16. dxc4 {[%emt 0:03:31]} dxc4 {[%emt 0:01:32]} (16... Nxc4 $14 17. Nxc4 dxc4) 17. Ne4 $1 $16 {[%emt 0:01:48]} Qc7 {[%emt 0:07:43]} 18. Nd4 {[%emt 0:02:58]} ({White should try} 18. Nd6 $16) 18... Nc5 {[%emt 0:07:58] [#]} (18... Bb7 $14) 19. Qg4 $2 {[%emt 0:11:00]} (19. Nd6 $1 $18) 19... Nxe4 $11 {[%emt 0:17:06]} 20. Bxe4 {[%emt 0:00:02] Hoping for f5.} g6 {[%emt 0:08:03]} 21. Be3 {[%emt 0:01:55]} Bc5 {[%emt 0:01:37]} 22. Rfd1 {[%emt 0:03:06][%cal Bf1d1,Bd1d4,Bd4e4][%mdl 32]} Bxd4 {[%emt 0:00:49]} (22... c3 $11) 23. Rxd4 $14 {[%emt 0:03:06]} Bb7 {[%emt 0:00:36]} 24. Bxb7 {[%emt 0:00:53]} Rxb7 {[%emt 0:01:12]} 25. Qf3 {[%emt 0:01:08][%cal Oa1a5] Rxa5! is the strong threat.} Nc6 {[%emt 0:01:23]} 26. Re4 {[%emt 0:04:14]} ({Worse is} 26. Rxc4 {[#]} Nxe5 $1 27. fxe5 (27. Rxc7 $2 {perishes.} Nxf3+ 28. Kg2 Nh4+ 29. gxh4 Rxc7 $19) 27... Qxc4 $17) 26... Ne7 {[%emt 0:00:39]} 27. g4 {[%emt 0:02:10]} Qc6 {[%emt 0:00:48]} 28. Qg2 {[%emt 0:01:21]} Rd7 {[%emt 0:00:43]} 29. h4 {[%emt 0:01:16]} (29. Rd4 $11 Nd5 30. Bf2) 29... b3 {[%emt 0:00:19]} (29... h5 $17 {Threatens to win with ...hxg4.} 30. Rd4 (30. gxh5 Nf5 $17) 30... Rxd4 31. Bxd4 Rd8 32. Qxc6 Nxc6) 30. cxb3 $11 {[%emt 0:04:29]} cxb3 {[%emt 0:00:03]} 31. Rc1 {[%emt 0:00:29]} Qb7 {[%emt 0:00:36][%cal Oh7h5]} 32. Rcc4 {[%emt 0:07:19] Inhibits h5.} (32. Rec4 $11) 32... Nd5 {[%emt 0:00:57]} (32... Rc8 $17 {aiming for ...Rdc7.} 33. Rb4 Qd5) 33. Bc5 {[%emt 0:02:27]} (33. f5 $11) 33... Rc8 $17 {[%emt 0:00:32]} 34. f5 $2 {[%emt 0:01:51][%mdl 8192]} (34. Bd6 $17) 34... Rdc7 $19 {[%emt 0:00:26]} 35. Qf2 {[%emt 0:05:41]} Qb5 {[%emt 0:00:27] Weighted Error Value: White=0.55/Black=0.28 (precise)} 0-1

[Event "Israeli Championship 2022"]
[Site "Yosiah Arad"]
[Date "2022.12.13"]
[Round "9.15"]
[White "Ben-Menachem, Itzhak"]
[Black "Shimshovich, Asaf"]
[Result "1/2-1/2"]
[ECO "A96"]
[WhiteElo "2291"]
[BlackElo "1941"]
[Annotator "TA"]
[PlyCount "31"]
[EventDate "2022.12.05"]
[EventType "swiss"]
[EventCountry "ISR"]
[SourceTitle "playchess.com"]
[Source "ChessBase"]
[SourceQuality "1"]
[TimeControl "40/5400+30:1800+30"]

{[%evp 16,31,47,28,14,12,14,0,0,2,9,6,11,14,14,10,16,17]} 1. d4 {[%emt 0:00:02]} f5 {[%emt 0:00:04]} 2. g3 {[%emt 0:00:06]} e6 {[%emt 0:00:05]} 3. Bg2 {[%emt 0:00:08]} Nf6 {[%emt 0:00:03]} 4. Nf3 {[%emt 0:00:09]} Be7 {[%emt 0:00:13]} 5. O-O {[%emt 0:00:07]} O-O {[%emt 0:00:02]} 6. c4 {[%emt 0:00:06]} d6 {[%emt 0:00:07]} 7. Nc3 {[%emt 0:06:07]} Ne4 {[%emt 0:00:15]} 8. Qc2 {[%emt 0:02:31]} Nxc3 {[%emt 0:00:15]} 9. bxc3 {[%emt 0:00:20]} Nc6 {[%emt 0:00:11] A96: Classical Dutch: Fluid Systems: Early deviations.} 10. e4 {[%emt 0:12:02] The position is equal.} e5 {[%emt 0:01:59]} 11. exf5 {[%emt 0:00:48]} Bxf5 {[%emt 0:00:36]} 12. Qe2 {[%emt 0:09:51][%cal Rd4e5]} Bf6 {[%emt 0:03:51][%cal Re5d4]} 13. Be3 {[%emt 0:09:21]} Qe8 {[%emt 0:03:38]} 14. dxe5 {[%emt 0:03:07]} dxe5 {[%emt 0:04:08] [#]} 15. Bc5 $146 {[%emt 0:01:25]} ({Predecessor:} 15. Nd2 e4 16. Bc5 Bxc3 17. Bxf8 Bxa1 18. Rxa1 Qxf8 19. Nxe4 Re8 20. c5 Bg6 21. Qc4+ Qf7 22. Nf6+ {1-0 (22) Kirk,T-Anderson,C ICCF email 2016}) 15... Rf7 {[%emt 0:03:28]} 16. Nd2 {[%emt 0:00:43] An uneventful encounter.   Weighted Error Value: White=0.03 (flawless) /Black=0.01 (flawless)} 1/2-1/2